bitfinex-derivatives/quotes_ETHF0:USTF0_20260118
["timestamp","ask_amount","ask_price","bid_price","bid_amount"]
[1768755642565,0.95983972,3335.9,3334.5,0.95983972]
[1768755642869,0.9532142,3335.8,3334.5,0.95983972]
[1768755643064,0.9532142,3335.7,3334.5,0.95983972]
[1768755643268,0.9532142,3335.6,3334.5,0.95983972]
[1768755643567,0.95983972,3335.9,3334.5,0.95983972]
[1768755643765,0.95319462,3335.8,3334.5,0.95983972]
[1768755643965,0.95319462,3335.7,3334.5,0.95983972]
[1768755644167,0.95319462,3335.6,3334.5,0.95983972]
[1768755644365,0.95983972,3335.9,3334.5,0.95983972]
[1768755644564,0.95316775,3335.8,3334.5,0.95983972]
[1768755644759,0.95316775,3335.7,3334.5,0.95983972]
[1768755644959,0.95316775,3335.6,3334.5,0.95983972]
[1768755645160,0.95983972,3335.9,3334.5,0.95983972]
[1768755645361,0.95316195,3335.8,3334.5,0.95983972]
[1768755645557,0.95316195,3335.7,3334.5,0.95983972]
[1768755645767,0.95316195,3335.6,3334.5,0.95983972]
[1768755645961,0.95983972,3335.9,3334.5,0.95983972]
[1768755646163,0.95116362,3335.8,3334.5,0.95983972]
[1768755646462,0.95116362,3335.7,3334.5,0.95983972]
[1768755646763,0.95116362,3335.6,3334.5,0.95983972]
[1768755646960,2.63183972,3335.9,3334.5,0.95983972]
[1768755647166,0.95115506,3335.8,3334.5,0.95983972]
[1768755647369,0.95115506,3335.7,3334.5,0.95983972]
[1768755647560,0.95115506,3335.6,3334.5,0.95983972]
[1768755647761,2.63183972,3335.9,3334.5,0.95983972]
[1768755647963,0.95101751,3335.8,3334.5,0.95983972]
[1768755648161,0.95101751,3335.7,3334.5,0.95983972]
[1768755648362,0.95101751,3335.6,3334.5,0.95983972]
[1768755648562,2.63183972,3335.9,3334.5,0.95983972]
[1768755648759,0.9510385,3335.8,3334.5,0.95983972]
[1768755648960,0.9510385,3335.7,3334.5,0.95983972]
[1768755649163,0.9510385,3335.6,3334.5,0.95983972]
[1768755649365,2.63183972,3335.9,3334.5,0.95983972]
[1768755649571,0.95103755,3335.8,3334.5,0.95983972]
[1768755649770,0.95103755,3335.7,3334.5,0.95983972]
[1768755649973,0.95103755,3335.6,3334.5,0.95983972]
[1768755650162,2.63183972,3335.9,3334.5,0.95983972]
[1768755650363,0.95103766,3335.8,3334.5,0.95983972]
[1768755650559,0.95103766,3335.7,3334.5,0.95983972]
[1768755650770,0.95103766,3335.6,3334.5,0.95983972]
[1768755651068,2.63183972,3335.9,3334.5,0.95983972]
[1768755651264,0.95103956,3335.8,3334.5,0.95983972]
[1768755651459,0.95103956,3335.7,3334.5,0.95983972]
[1768755651661,0.95103956,3335.6,3334.5,0.95983972]
[1768755651866,2.63183972,3335.9,3334.5,0.95983972]
[1768755652065,0.95103946,3335.8,3334.5,0.95983972]
[1768755652268,0.95103946,3335.7,3334.5,0.95983972]
[1768755652467,0.95103946,3335.6,3334.5,0.95983972]
[1768755652669,2.77196739,3335.9,3334.5,0.95983972]
[1768755652963,0.95101065,3335.8,3334.5,0.95983972]
[1768755653169,0.95101065,3335.7,3334.5,0.95983972]
[1768755653375,0.95101065,3335.6,3334.5,0.95983972]
[1768755653574,0.95983972,3335.7,3334.5,0.95983972]
[1768755653771,0.95099268,3335.6,3334.4,0.15]
[1768755653974,0.95099268,3335.5,3334.4,0.15]
[1768755654179,1.09996739,3335.7,3334.4,0.15]
[1768755654476,0.95096734,3335.6,3334.4,0.15]
[1768755654671,0.95096734,3335.5,3334.4,1.10983972]
[1768755654871,0.95983972,3335.7,3334.4,1.10983972]
[1768755655072,0.95097078,3335.6,3334.4,1.10983972]
[1768755655269,0.95983972,3335.7,3334.4,1.10983972]
[1768755655469,0.95095678,3335.6,3334.8,0.95983972]
[1768755655675,1.672,3335.8,3334.8,0.95983972]
[1768755655876,0.95095613,3335.7,3334.8,0.95983972]
[1768755656068,0.95095613,3335.6,3334.8,0.95983972]
[1768755656268,1.672,3335.8,3334.8,0.95983972]
[1768755656478,0.95093752,3335.7,3334.8,0.95983972]
[1768755656777,0.95093752,3335.6,3334.8,0.95983972]
[1768755656973,1.672,3335.8,3334.8,0.95983972]
[1768755657172,0.95094898,3335.7,3334.8,0.95983972]
[1768755657365,0.95094898,3335.6,3334.6,0.95983972]
[1768755657564,1.672,3335.8,3334.6,0.95983972]
[1768755657771,0.95095375,3335.7,3334.6,0.95983972]
[1768755657979,0.95095375,3335.6,3334.6,0.95983972]
[1768755658285,0.95983972,3335.7,3334.4,0.15]
[1768755658575,0.95095973,3335.6,3334.4,0.15]
[1768755658777,0.95983972,3335.7,3334.4,0.15]
[1768755659077,0.95095824,3335.6,3334.4,0.15]
[1768755659276,0.95095824,3335.5,3334.4,0.15]
[1768755659479,0.95983972,3335.7,3334.4,0.15]
[1768755659778,0.95097255,3335.6,3334.4,0.15]
[1768755660077,0.95097255,3335.5,3334.4,0.15]
[1768755660270,0.95983972,3335.7,3334.4,0.15]
[1768755660470,0.95100639,3335.6,3334.4,0.15]
[1768755660671,0.95100639,3335.5,3334.4,0.15]
[1768755660970,0.95983972,3335.7,3334.4,0.15]
[1768755661170,0.95101882,3335.6,3334.4,0.15]
[1768755661370,0.95101882,3335.5,3334.4,0.15]
[1768755661576,0.95983972,3335.7,3334.4,0.15]
[1768755661778,0.9511084,3335.6,3334.4,0.15]
[1768755661980,0.9511084,3335.5,3334.4,0.15]
[1768755662174,1.81212767,3335.8,3334.4,0.15]
[1768755662369,1.91098685,3335.7,3334.4,0.15]
[1768755662571,0.95114713,3335.6,3334.4,0.15]
[1768755667182,0.95114713,3335.6,3334.5,0.95983972]
[1768755672183,0.95114713,3335.6,3334.4,0.15]
[1768755676478,0.95114713,3335.6,3334.4,1.10983972]
[1768755681782,0.95114713,3335.5,3334.4,1.10983972]
[1768755682084,0.95114713,3335.4,3334.4,1.10983972]
[1768755682289,2.77196739,3335.8,3334.4,1.10983972]
[1768755682493,0.95117071,3335.7,3334.4,1.10983972]
[1768755682692,0.95117071,3335.6,3334.4,1.10983972]
[1768755682991,2.77196739,3335.8,3334.4,1.10983972]
[1768755682992,0.95117071,3335.5,3334.4,1.10983972]
[1768755683194,0.95117071,3335.4,3334.4,1.10983972]
[1768755683491,1.672,3335.6,3334.4,1.10983972]
[1768755683694,0.95117133,3335.5,3334.4,1.10983972]
[1768755683885,0.95117133,3335.4,3334.4,1.10983972]
[1768755684085,1.672,3335.6,3334.4,1.10983972]
[1768755684287,0.95117188,3335.5,3334.4,1.10983972]
[1768755684486,0.95983972,3335.3,3334.0,0.14231204]
[1768755684698,0.95109274,3335.2,3334.0,0.14231204]
[1768755684887,0.00270754,3335.2,3334.0,0.14231204]
[1768755691302,0.00270754,3335.2,3334.0,1.10215176]
[1768755694407,0.00270754,3335.2,3334.4,0.95983972]
[1768755694605,0.00270754,3335.2,3334.2,0.13651523]
[1768755694799,0.00270754,3335.2,3334.4,0.95983972]
[1768755695004,0.00270754,3335.2,3334.2,0.13651523]
[1768755711023,0.94566821,3335.1,3334.0,0.15001]
[1768755711322,0.94566821,3335.0,3334.0,0.15001]
[1768755711523,0.94566821,3334.9,3334.0,0.15001]
[1768755711723,0.00270754,3335.2,3334.0,0.15001]
[1768755711923,0.9455753,3335.1,3334.0,0.15001]
[1768755712125,0.9455753,3335.0,3334.0,0.15001]
[1768755712326,0.00270754,3335.2,3334.0,0.15001]
[1768755712523,0.94546091,3335.1,3334.0,0.15001]
[1768755712823,0.94546091,3335.0,3334.0,0.28507978]
[1768755713026,0.00270754,3335.2,3334.0,0.28507978]
[1768755713326,0.94540527,3335.1,3334.0,0.28507978]
[1768755713524,0.94540527,3335.0,3334.0,0.28507978]
[1768755713827,0.00270754,3335.2,3334.0,0.28507978]
[1768755714026,0.94540506,3335.1,3334.0,0.28507978]
[1768755714233,0.94540506,3335.0,3334.0,0.28507978]
[1768755714417,0.00270754,3335.2,3334.0,0.28507978]
[1768755714620,0.9453846,3335.1,3334.0,0.28507978]
[1768755714819,0.9453846,3335.0,3334.0,0.28507978]
[1768755715019,0.00270754,3335.2,3334.0,0.28507978]
[1768755715312,0.94528535,3335.1,3334.0,0.28507978]
[1768755715513,0.00270754,3335.2,3334.1,0.13506978]
[1768755715514,0.94528535,3335.0,3334.1,0.13506978]
[1768755715718,0.00270754,3335.2,3334.1,0.13506978]
[1768755715917,0.94529871,3335.1,3334.1,0.13506978]
[1768755716127,0.94529871,3335.0,3334.1,0.13506978]
[1768755716328,0.00270754,3335.2,3334.1,0.13506978]
[1768755716529,0.94523436,3335.1,3334.1,0.13506978]
[1768755716826,0.94523436,3335.0,3334.1,0.13506978]
[1768755717025,0.00270754,3335.2,3334.1,0.13506978]
[1768755717231,0.94518625,3335.1,3334.1,0.13506978]
[1768755717421,0.94518625,3335.0,3334.1,0.13506978]
[1768755717623,0.00270754,3335.2,3334.1,0.13506978]
[1768755717921,0.94518647,3335.1,3334.1,0.13506978]
[1768755718124,0.94518647,3335.0,3334.1,0.13506978]
[1768755718422,0.00270754,3335.2,3334.1,0.13506978]
[1768755718722,0.94514886,3335.1,3334.1,0.13506978]
[1768755718922,0.00270754,3335.2,3334.1,0.13506978]
[1768755729436,0.00270754,3335.2,3333.7,0.13812577]
[1768755730335,0.94519612,3335.1,3333.7,0.13812577]
[1768755730538,0.00270754,3335.2,3333.7,0.13812577]
[1768755730739,0.94517987,3335.1,3333.7,0.13812577]
[1768755730931,0.00270754,3335.2,3333.7,0.13812577]
[1768755731135,0.94517958,3335.1,3333.7,0.13812577]
[1768755731334,0.00270754,3335.2,3333.7,0.13812577]
[1768755731534,0.94517602,3335.1,3333.7,0.13812577]
[1768755731735,0.00270754,3335.2,3333.7,0.13812577]
[1768755731936,0.94517602,3335.1,3333.7,0.13812577]
[1768755732136,0.00270754,3335.2,3333.7,0.13812577]
[1768755732350,0.94517574,3335.1,3333.7,0.13812577]
[1768755732537,0.00270754,3335.2,3333.7,0.13812577]
[1768755732737,0.94517764,3335.1,3333.7,0.13812577]
[1768755732933,0.00270754,3335.2,3333.7,0.13812577]
[1768755733137,0.94518024,3335.1,3333.7,0.13812577]
[1768755733339,0.00270754,3335.2,3333.7,0.13812577]
[1768755733537,0.94518216,3335.1,3333.7,0.13812577]
[1768755733740,0.00270754,3335.2,3333.7,0.13812577]
[1768755733939,0.94518136,3335.1,3333.7,0.13812577]
[1768755734146,0.00270754,3335.2,3333.7,0.13812577]
[1768755734345,0.94518504,3335.1,3333.7,0.13812577]
[1768755734542,0.00270754,3335.2,3333.7,0.13812577]
[1768755734744,0.94519161,3335.1,3333.7,0.13812577]
[1768755734945,0.00270754,3335.2,3333.7,0.13812577]
[1768755735146,0.94519908,3335.1,3333.7,0.13812577]
[1768755735339,0.00270754,3335.2,3333.7,0.13812577]
[1768755735539,0.94520787,3335.1,3333.7,0.13812577]
[1768755735743,0.00270754,3335.2,3333.7,0.13812577]
[1768755735941,0.94164547,3335.1,3333.7,0.13812577]
[1768755736138,0.00270754,3335.2,3333.7,0.13812577]
[1768755736340,0.94165221,3335.1,3333.7,0.13812577]
[1768755736541,0.00270754,3335.2,3333.7,0.13812577]
[1768755736845,0.94165213,3335.1,3333.7,0.13812577]
[1768755737043,0.00270754,3335.2,3333.7,0.13812577]
[1768755737245,0.94165281,3335.1,3333.7,0.13812577]
[1768755737444,0.00270754,3335.2,3333.7,0.13812577]
[1768755737646,0.94166856,3335.1,3333.7,0.13812577]
[1768755737847,0.00270754,3335.2,3333.7,0.13812577]
[1768755738145,0.94139679,3335.1,3333.7,0.13812577]
[1768755738345,0.00270754,3335.2,3333.7,0.13812577]
[1768755738549,0.94141333,3335.1,3333.7,0.13812577]
[1768755738748,0.00270754,3335.2,3333.7,0.13812577]
[1768755738948,0.94138387,3335.1,3333.7,0.13812577]
[1768755739148,0.00270754,3335.2,3333.7,0.13812577]
[1768755739348,0.94141321,3335.1,3333.7,0.13812577]
[1768755739548,0.00270754,3335.2,3333.7,0.13812577]
[1768755739748,0.94141323,3335.1,3333.7,0.13812577]
[1768755739950,0.00270754,3335.2,3333.7,0.13812577]
[1768755740140,0.94141365,3335.1,3333.7,0.13812577]
[1768755740343,0.00270754,3335.2,3333.7,0.13812577]
[1768755740542,0.94144393,3335.1,3333.7,0.13812577]
[1768755740752,0.00270754,3335.2,3333.7,0.13812577]
[1768755740953,0.94144483,3335.1,3333.7,0.13812577]
[1768755741156,0.00270754,3335.2,3333.7,0.13812577]
[1768755741358,0.94145586,3335.1,3333.7,0.13812577]
[1768755741657,0.00270754,3335.2,3333.7,0.13812577]
[1768755741952,0.94145863,3335.1,3333.7,0.13812577]
[1768755742155,0.00270754,3335.2,3333.7,0.13812577]
[1768755742355,0.94146504,3335.1,3333.7,0.13812577]
[1768755742653,0.00270754,3335.2,3333.7,0.13812577]
[1768755742854,0.94146361,3335.1,3333.7,0.13812577]
[1768755743048,0.00270754,3335.2,3333.7,0.13812577]
[1768755743247,0.94146077,3335.1,3333.7,0.13812577]
[1768755743451,0.00270754,3335.2,3333.7,0.13812577]
[1768755743653,0.94146785,3335.1,3333.7,0.13812577]
[1768755743855,0.00270754,3335.2,3333.7,0.13812577]
[1768755744050,0.94146782,3335.1,3333.7,0.13812577]
[1768755744250,0.00270754,3335.2,3333.7,0.13812577]
[1768755744448,0.94147084,3335.1,3333.7,0.13812577]
[1768755744648,0.00270754,3335.2,3333.7,0.13812577]
[1768755744848,0.94147082,3335.1,3333.7,0.13812577]
[1768755745042,0.00270754,3335.2,3333.7,0.13812577]
[1768755745250,0.94146671,3335.1,3333.7,0.13812577]
[1768755745452,0.00270754,3335.2,3333.7,0.13812577]
[1768755745651,0.94147473,3335.1,3333.7,0.13812577]
[1768755745849,0.00270754,3335.2,3333.7,0.13812577]
[1768755746054,0.9414747,3335.1,3333.7,0.13812577]
[1768755746362,0.00270754,3335.2,3333.7,0.13812577]
[1768755746660,0.94147102,3335.1,3333.7,0.13812577]
[1768755746847,0.00270754,3335.2,3333.7,0.13812577]
[1768755747051,0.941471,3335.1,3333.7,0.13812577]
[1768755747252,0.00270754,3335.2,3333.7,0.13812577]
[1768755747551,0.94146686,3335.1,3333.7,0.13812577]
[1768755747752,0.00270754,3335.2,3333.7,0.13812577]
[1768755747951,0.94146766,3335.1,3333.7,0.13812577]
[1768755748153,0.00270754,3335.2,3333.7,0.13812577]
[1768755748448,0.94146326,3335.1,3333.7,0.13812577]
[1768755748662,0.00270754,3335.2,3333.7,0.13812577]
[1768755748964,0.94149161,3335.1,3333.7,0.13812577]
[1768755749152,0.00270754,3335.2,3333.7,0.13812577]
[1768755749352,0.94150061,3335.1,3333.7,0.13812577]
[1768755749548,0.00270754,3335.2,3333.7,0.13812577]
[1768755749754,0.94150057,3335.1,3333.7,0.13812577]
[1768755749956,0.00270754,3335.2,3333.7,0.13812577]
[1768755750260,0.94149902,3335.1,3333.7,0.13812577]
[1768755750462,0.00270754,3335.2,3333.7,0.13812577]
[1768755750761,0.94138749,3335.1,3333.7,0.13812577]
[1768755750962,0.00270754,3335.2,3333.7,0.13812577]
[1768755751162,0.94108521,3335.1,3333.7,0.13812577]
[1768755751463,0.00270754,3335.2,3333.7,0.13812577]
[1768755751663,0.94109668,3335.1,3333.7,0.13812577]
[1768755751863,0.00270754,3335.2,3333.7,0.13812577]
[1768755752055,0.94109674,3335.1,3333.7,0.13812577]
[1768755752256,0.00270754,3335.2,3333.7,0.13812577]
[1768755752462,0.94110871,3335.1,3333.7,0.13812577]
[1768755752764,0.00270754,3335.2,3333.7,0.13812577]
[1768755752962,0.9411087,3335.1,3333.7,0.13812577]
[1768755753156,0.00270754,3335.2,3333.7,0.13812577]
[1768755753357,0.94112257,3335.1,3333.7,0.13812577]
[1768755753654,0.00270754,3335.2,3333.7,0.13812577]
[1768755753854,0.94112271,3335.1,3333.7,0.13812577]
[1768755754065,0.00270754,3335.2,3333.7,0.13812577]
[1768755754265,0.94112217,3335.1,3333.7,0.13812577]
[1768755754456,0.00270754,3335.2,3333.7,0.13812577]
[1768755754656,0.94120664,3335.1,3333.7,0.13812577]
[1768755754861,0.00270754,3335.2,3333.9,0.96011443]
[1768755755060,0.941205,3335.1,3333.9,0.96011443]
[1768755755368,0.96011443,3334.9,3333.7,0.13812577]
[1768755756366,0.96011443,3334.9,3333.7,0.00305599]
[1768755757756,0.1353068,3335.1,3333.7,0.00305599]
[1768755757959,0.96011443,3334.9,3333.7,0.00305599]
[1768755758260,0.94143509,3334.8,3333.7,0.00305599]
[1768755758464,0.96011443,3334.9,3333.7,0.00305599]
[1768755758665,0.94143561,3334.8,3333.7,0.00305599]
[1768755758865,0.96011443,3334.9,3333.7,0.00305599]
[1768755759166,0.94143648,3334.8,3333.7,0.00305599]
[1768755759370,0.96011443,3334.9,3333.7,0.00305599]
[1768755759566,0.94158255,3334.8,3333.7,0.00305599]
[1768755759862,0.96011443,3334.9,3333.7,0.00305599]
[1768755760063,0.94158204,3334.8,3333.7,0.00305599]
[1768755760361,0.96011443,3334.9,3333.7,0.00305599]
[1768755760563,0.94152765,3334.8,3333.7,0.00305599]
[1768755760764,0.96011443,3334.9,3333.7,0.00305599]
[1768755760963,0.94152793,3334.8,3333.7,0.00305599]
[1768755761162,0.96011443,3334.9,3333.7,0.00305599]
[1768755761466,0.94147741,3334.8,3333.7,0.96317042]
[1768755761652,1.09542123,3335.1,3333.7,0.96317042]
[1768755761860,0.94148167,3335.0,3334.3,0.96011443]
[1768755762060,0.94148167,3334.9,3334.3,0.96011443]
[1768755762260,0.00270754,3335.2,3334.3,0.96011443]
[1768755762565,0.94150074,3335.1,3334.3,0.96011443]
[1768755762866,0.94150074,3335.0,3334.3,0.96011443]
[1768755763060,0.00270754,3335.2,3334.3,0.96011443]
[1768755763254,0.94149254,3335.1,3334.3,0.96011443]
[1768755763462,0.94149254,3335.0,3334.3,0.96011443]
[1768755763658,0.00270754,3335.2,3334.3,0.96011443]
[1768755763967,0.94149614,3335.1,3334.3,0.96011443]
[1768755764162,0.96282197,3335.2,3333.8,0.15003]
[1768755764368,0.94152089,3335.1,3333.8,1.11014443]
[1768755764568,0.94152089,3335.0,3333.8,1.11014443]
[1768755764865,0.96282197,3335.2,3333.8,1.11014443]
[1768755765066,0.94149761,3335.1,3333.8,1.11014443]
[1768755765267,0.94149206,3335.0,3333.8,1.11014443]
[1768755765457,0.00270754,3335.2,3334.0,0.96011443]
[1768755765658,0.94151432,3335.1,3334.0,0.96011443]
[1768755765865,0.94151432,3335.0,3334.0,0.96011443]
[1768755766058,0.00270754,3335.2,3334.0,0.96011443]
[1768755766260,0.94392181,3335.1,3334.0,0.96011443]
[1768755766461,0.94392181,3335.0,3334.0,0.96011443]
[1768755766766,0.00270754,3335.2,3334.0,0.96011443]
[1768755766971,0.94392247,3335.1,3334.0,0.96011443]
[1768755767166,0.94392247,3335.0,3334.0,0.96011443]
[1768755767359,0.00270754,3335.2,3334.0,0.96011443]
[1768755767559,0.94392487,3335.1,3334.0,0.96011443]
[1768755767760,0.94392487,3335.0,3334.0,0.96011443]
[1768755767965,0.00270754,3335.2,3334.0,0.96011443]
[1768755768166,0.94392485,3335.1,3334.0,0.96011443]
[1768755768368,0.94392485,3335.0,3334.0,0.96011443]
[1768755768571,0.00270754,3335.2,3334.0,0.96011443]
[1768755768870,0.94392693,3335.1,3334.0,0.96011443]
[1768755769069,0.94392693,3335.0,3334.0,0.96011443]
[1768755769365,0.00270754,3335.2,3334.0,0.96011443]
[1768755769564,0.94392665,3335.1,3334.0,0.96011443]
[1768755769761,0.94392665,3335.0,3334.0,0.96011443]
[1768755769962,0.00270754,3335.2,3334.0,0.96011443]
[1768755770164,0.9439253,3335.1,3334.6,0.96011443]
[1768755770363,0.00270754,3335.2,3334.6,0.96011443]
[1768755770562,0.94393162,3335.1,3334.6,0.96011443]
[1768755770873,0.00270754,3335.2,3334.6,0.96011443]
[1768755771165,0.94393156,3335.1,3334.6,0.96011443]
[1768755771375,0.00270754,3335.2,3334.6,0.96011443]
[1768755771573,0.94391961,3335.1,3334.6,0.96011443]
[1768755771870,0.00270754,3335.2,3334.6,0.96011443]
[1768755772072,0.94392056,3335.1,3334.6,0.96011443]
[1768755772272,0.00270754,3335.2,3334.6,0.96011443]
[1768755772468,0.64383115,3335.1,3334.6,1.09872861]
[1768755772659,1.61036449,3336.1,3335.0,0.96011443]
[1768755772967,3.28236449,3336.1,3335.0,0.96011443]
[1768755773173,1.61036449,3336.2,3335.0,0.96011443]
[1768755773370,1.672,3336.1,3335.0,0.96011443]
[1768755773560,1.67414505,3336.1,3335.0,0.96011443]
[1768755773764,0.00214505,3336.1,3335.0,0.96011443]
[1768755773958,0.00214505,3336.1,3335.2,0.96011443]
[1768755774471,0.96225948,3336.1,3334.5,0.28860418]
[1768755774675,0.96225948,3336.1,3334.6,0.96011443]
[1768755775369,0.00214505,3336.1,3334.6,1.09872861]
[1768755775575,1.67514505,3336.1,3334.6,1.09872861]
[1768755776977,1.67514505,3336.1,3334.8,0.96011443]
[1768755777963,0.00214505,3336.1,3334.8,0.96011443]
[1768755778169,1.67514505,3336.1,3334.8,1.09872861]
[1768755779679,0.00214505,3336.1,3335.0,0.96011443]
[1768755779979,1.67514505,3336.1,3335.0,0.96011443]
[1768755781580,1.67514505,3336.1,3334.8,1.09872861]
[1768755781873,2.63525948,3336.1,3334.8,1.09872861]
[1768755783287,2.63525948,3336.1,3334.8,0.13861418]
[1768755783483,0.96011443,3335.9,3334.6,0.96011443]
[1768755784987,0.96011443,3335.9,3334.5,0.14999]
[1768755785283,0.96011443,3335.7,3334.5,0.14999]
[1768755787991,1.81491083,3336.1,3334.5,0.14999]
[1768755788288,1.81491083,3336.1,3334.6,0.96011443]
[1768755788289,0.96011443,3335.9,3334.6,0.96011443]
[1768755788681,0.96011443,3335.9,3334.5,0.28860418]
[1768755788883,0.96011443,3335.9,3334.5,1.24871861]
[1768755792292,0.93821749,3335.8,3334.5,1.24871861]
[1768755792497,0.96011443,3335.8,3334.5,1.24871861]
[1768755793489,0.96011443,3335.8,3334.5,0.28860418]
[1768755794297,0.96011443,3336.0,3334.5,1.24871861]
[1768755794599,0.93848786,3335.9,3334.7,1.09872861]
[1768755794785,0.93848786,3335.8,3334.7,1.09872861]
[1768755794989,1.673,3336.0,3334.7,1.09872861]
[1768755795190,0.93848999,3335.9,3334.7,1.09872861]
[1768755795390,0.93848999,3335.8,3334.7,1.09872861]
[1768755795590,1.673,3336.0,3334.7,1.09872861]
[1768755795791,0.93860006,3335.9,3334.7,1.09872861]
[1768755795998,0.93860006,3335.8,3334.7,1.09872861]
[1768755796195,1.673,3336.0,3334.7,1.09872861]
[1768755796391,0.93865006,3335.9,3334.7,1.09872861]
[1768755796694,0.93865006,3335.8,3334.7,1.09872861]
[1768755796896,1.673,3336.0,3334.7,1.09872861]
[1768755797197,0.93864994,3335.9,3334.7,1.09872861]
[1768755797400,0.93864994,3335.8,3334.7,1.09872861]
[1768755797697,1.673,3336.0,3334.7,1.09872861]
[1768755797898,0.93881521,3335.9,3334.7,1.09872861]
[1768755798098,0.93881521,3335.8,3334.7,0.13861418]
[1768755798301,1.673,3336.0,3334.7,1.09872861]
[1768755798492,0.93901805,3335.9,3334.7,1.09872861]
[1768755798692,0.93901805,3335.8,3334.7,1.09872861]
[1768755798889,1.673,3336.0,3334.8,0.13861418]
[1768755799193,0.93901876,3335.9,3334.8,0.13861418]
[1768755799394,0.93901876,3335.8,3334.8,0.13861418]
[1768755799602,0.93901876,3335.7,3334.8,0.13861418]
[1768755799802,0.00214505,3336.1,3334.8,0.13861418]
[1768755800003,0.93927249,3336.0,3334.9,0.96011443]
[1768755800301,0.93927249,3335.9,3334.9,1.09872861]
[1768755800505,1.67514505,3336.1,3334.9,1.09872861]
[1768755800506,0.93927249,3335.8,3334.9,1.09872861]
[1768755800708,1.67514505,3336.1,3334.9,1.09872861]
[1768755801010,0.9395771,3336.0,3334.9,1.09872861]
[1768755801195,0.9395771,3335.9,3334.9,1.09872861]
[1768755801397,0.9395771,3335.8,3334.9,1.09872861]
[1768755801601,0.00214505,3336.1,3334.9,1.09872861]
[1768755801800,0.93992889,3336.0,3334.9,1.09872861]
[1768755802103,0.00214505,3336.1,3334.9,1.09872861]
[1768755802104,0.93992889,3335.9,3334.9,0.13861418]
[1768755802399,0.93992889,3335.8,3334.9,0.13861418]
[1768755802610,0.93992889,3335.7,3334.9,0.13861418]
[1768755802801,2.63525948,3336.1,3334.9,0.13861418]
[1768755802998,0.94054593,3336.0,3334.9,0.13861418]
[1768755803292,0.94054593,3335.9,3334.9,0.13861418]
[1768755803495,0.94054593,3335.8,3334.9,0.13861418]
[1768755803701,0.94054593,3335.7,3334.9,0.13861418]
[1768755803898,2.63525948,3336.1,3334.9,0.13861418]
[1768755804101,0.94051589,3336.0,3334.9,0.13861418]
[1768755804302,0.94051589,3335.9,3334.9,0.13861418]
[1768755804503,0.94051589,3335.8,3334.9,0.13861418]
[1768755804702,0.94051589,3335.7,3334.9,0.13861418]
[1768755804912,2.63525948,3336.1,3334.9,0.13861418]
[1768755805111,0.94048607,3336.0,3334.9,0.13861418]
[1768755805315,0.96011443,3335.7,3334.5,0.14999]
[1768755805606,0.96011443,3335.3,3334.1,0.14242039]
[1768755806510,0.96011443,3335.5,3334.1,1.10253482]
[1768755806809,0.94017355,3335.4,3334.1,1.10253482]
[1768755807010,0.96011443,3335.5,3334.1,1.10253482]
[1768755807211,0.9401718,3335.4,3334.3,0.96011443]
[1768755807510,0.96011443,3335.7,3334.3,0.96011443]
[1768755807714,0.94005456,3335.6,3334.3,0.96011443]
[1768755807907,0.94005456,3335.5,3334.3,0.96011443]
[1768755808112,0.94005456,3335.4,3334.3,0.96011443]
[1768755808413,1.61250954,3336.1,3335.1,0.96011443]
[1768755808609,3.28550954,3336.1,3335.1,0.96011443]
[1768755808918,0.93998957,3336.0,3334.9,0.96011443]
[1768755811820,0.93998957,3336.0,3334.5,0.14242039]
[1768755812015,1.900104,3336.0,3334.8,0.96011443]
[1768755812311,0.93998957,3335.9,3334.8,0.96011443]
[1768755812520,0.93998957,3335.8,3334.8,0.96011443]
[1768755812814,0.93998957,3335.7,3334.8,0.96011443]
[1768755813015,0.93998957,3335.6,3334.8,0.96011443]
[1768755813217,0.96011443,3336.0,3334.8,0.96011443]
[1768755813416,0.93993854,3335.9,3334.8,0.96011443]
[1768755813718,0.93993854,3335.8,3334.8,0.96011443]
[1768755814016,0.93993854,3335.7,3334.8,0.96011443]
[1768755814217,0.93993854,3335.6,3334.8,0.96011443]
[1768755814519,0.96011443,3336.0,3334.8,0.96011443]
[1768755814713,0.93992592,3335.9,3334.8,0.96011443]
[1768755814909,3.28550954,3336.1,3334.5,0.14242039]
[1768755814910,0.93992592,3335.8,3334.5,0.14242039]
[1768755815114,0.93992592,3335.7,3334.5,0.14242039]
[1768755815317,0.93992592,3335.6,3334.5,0.14242039]
[1768755815519,3.28550954,3336.1,3334.5,0.14242039]
[1768755815819,0.93991876,3336.0,3334.5,0.14242039]
[1768755816017,0.93991876,3335.9,3334.5,0.14242039]
[1768755816217,0.93991876,3335.8,3334.5,0.14242039]
[1768755816516,0.93991876,3335.7,3334.5,0.14242039]
[1768755816707,0.93991876,3335.6,3334.5,0.14242039]
[1768755816910,3.28550954,3336.1,3334.5,0.14242039]
[1768755817113,0.93991012,3336.0,3334.5,0.14242039]
[1768755817311,0.93991012,3335.9,3334.5,0.14242039]
[1768755817510,0.93991012,3335.8,3334.5,0.14242039]
[1768755817718,0.93991012,3335.7,3334.5,0.14242039]
[1768755817919,0.93991012,3335.6,3334.5,0.14242039]
[1768755818219,3.41710482,3336.1,3334.5,0.14242039]
[1768755818415,0.93989364,3336.0,3334.5,0.14242039]
[1768755818615,0.93989364,3335.9,3334.5,0.14242039]
[1768755818815,0.93989364,3335.8,3334.5,0.14242039]
[1768755819016,0.93989364,3335.7,3334.4,0.15]
[1768755819316,0.93989364,3335.6,3334.4,0.15]
[1768755819517,0.13159528,3335.9,3334.4,0.15]
[1768755819723,0.93988623,3335.8,3334.4,0.15]
[1768755819923,0.93988623,3335.7,3334.4,0.15]
[1768755820225,0.93988623,3335.6,3334.4,0.2900164]
[1768755820414,0.13159528,3335.9,3334.4,0.2900164]
[1768755820612,0.93988217,3335.8,3334.4,0.2900164]
[1768755820813,0.93988217,3335.7,3334.4,0.2900164]
[1768755821019,0.93988217,3335.6,3334.4,0.2900164]
[1768755821221,0.13159528,3335.9,3334.4,0.2900164]
[1768755821421,0.93987962,3335.8,3334.4,0.2900164]
[1768755821622,0.93987962,3335.7,3334.4,0.2900164]
[1768755821920,0.93987962,3335.6,3334.4,0.2900164]
[1768755822118,0.13159528,3335.9,3334.4,0.2900164]
[1768755822320,0.93987725,3335.8,3334.4,0.2900164]
[1768755822516,0.93987725,3335.7,3334.4,0.2900164]
[1768755822716,0.93987725,3335.6,3334.4,0.2900164]
[1768755822918,0.13159528,3335.9,3334.4,0.2900164]
[1768755823127,0.93987735,3335.8,3334.4,0.2900164]
[1768755823320,0.93987735,3335.7,3334.4,0.2900164]
[1768755823524,0.93987735,3335.6,3334.4,0.2900164]
[1768755823722,0.13159528,3335.9,3334.4,0.2900164]
[1768755823923,0.93987414,3335.8,3334.4,0.2900164]
[1768755824126,0.93987414,3335.7,3334.4,0.2900164]
[1768755824326,0.93987414,3335.6,3334.4,0.2900164]
[1768755824527,0.13159528,3335.9,3334.4,0.2900164]
[1768755824728,0.93987152,3335.8,3334.4,0.2900164]
[1768755824930,0.93987152,3335.7,3334.4,0.2900164]
[1768755825122,0.93987152,3335.6,3334.4,0.2900164]